Workbook

Sheet Front sheet
A1: Births and deaths
A3: 1981 - 2016
A5: The data used in this publication comes the annual Office for National Statistics (ONS) registered births and deaths in England and Wales data releases.
A9: Chart breakdowns are available for the 12 Lancashire county authorities and the two neighbouring unitary authorities of Blackburn with Darwen and Blackpool. As well total summary figures for the combined 14 authorities (Lancashire-14) and the combined Lancashire county districts (Lancashire-12).
A16: The trend line chart shows the total registered births and deaths between 1981 and 2016, as well as a the difference between the two (Deaths-births). Users should note that is not an accurate depiction of population change over time. As it excludes inward and outward migration.
A21: The column chart also shows the total registered births and deaths between 1981 and 2016, but does not include the difference calculation.
A26: Source : ONS annual births and deaths registrations, last published July 2017
A28: Deaths registered in England and Wales
A29: Births registered in England and Wales

Sheet Charts
A1: ="Births and deaths 1981 - 2016 " & " : " & B8 -> Births and deaths 1981 - 2016 : Lancashire-14
E4: << Select area
B8: Lancashire-14 | D8: Total live births | E8: Total registered deaths | F8: Difference
D9: live births | E9: deaths | F9: difference
C10: 1981 | D10: =SUM(IF(RAW!$A$2:$A$73=Charts!$C10,IF(RAW!$B$2:$B$73=Charts!$D$9,IF(RAW!$C$1:$R$1=Charts!$B$8,RAW!$C$2:$R$73)))) -> 17597 | E10: =SUM(IF(RAW!$A$2:$A$73=Charts!$C10,IF(RAW!$B$2:$B$73=Charts!$E$9,IF(RAW!$C$1:$R$1=Charts!$B$8,RAW!$C$2:$R$73)))) -> 18959 | F10: =D10-E10 -> -1362
C11: 1982 | D11: =SUM(IF(RAW!$A$2:$A$73=Charts!$C11,IF(RAW!$B$2:$B$73=Charts!$D$9,IF(RAW!$C$1:$R$1=Charts!$B$8,RAW!$C$2:$R$73)))) -> 17583 | E11: =SUM(IF(RAW!$A$2:$A$73=Charts!$C11,IF(RAW!$B$2:$B$73=Charts!$E$9,IF(RAW!$C$1:$R$1=Charts!$B$8,RAW!$C$2:$R$73)))) -> 19275 | F11: -1692
C12: 1983 | D12: =SUM(IF(RAW!$A$2:$A$73=Charts!$C12,IF(RAW!$B$2:$B$73=Charts!$D$9,IF(RAW!$C$1:$R$1=Charts!$B$8,RAW!$C$2:$R$73)))) -> 17829 | E12: =SUM(IF(RAW!$A$2:$A$73=Charts!$C12,IF(RAW!$B$2:$B$73=Charts!$E$9,IF(RAW!$C$1:$R$1=Charts!$B$8,RAW!$C$2:$R$73)))) -> 19086 | F12: -1257
C13: 1984 | D13: =SUM(IF(RAW!$A$2:$A$73=Charts!$C13,IF(RAW!$B$2:$B$73=Charts!$D$9,IF(RAW!$C$1:$R$1=Charts!$B$8,RAW!$C$2:$R$73)))) -> 18021 | E13: =SUM(IF(RAW!$A$2:$A$73=Charts!$C13,IF(RAW!$B$2:$B$73=Charts!$E$9,IF(RAW!$C$1:$R$1=Charts!$B$8,RAW!$C$2:$R$73)))) -> 18508 | F13: -487
C14: 1985 | D14: =SUM(IF(RAW!$A$2:$A$73=Charts!$C14,IF(RAW!$B$2:$B$73=Charts!$D$9,IF(RAW!$C$1:$R$1=Charts!$B$8,RAW!$C$2:$R$73)))) -> 18308 | E14: =SUM(IF(RAW!$A$2:$A$73=Charts!$C14,IF(RAW!$B$2:$B$73=Charts!$E$9,IF(RAW!$C$1:$R$1=Charts!$B$8,RAW!$C$2:$R$73)))) -> 19357 | F14: -1049
C15: 1986 | D15: =SUM(IF(RAW!$A$2:$A$73=Charts!$C15,IF(RAW!$B$2:$B$73=Charts!$D$9,IF(RAW!$C$1:$R$1=Charts!$B$8,RAW!$C$2:$R$73)))) -> 18547 | E15: =SUM(IF(RAW!$A$2:$A$73=Charts!$C15,IF(RAW!$B$2:$B$73=Charts!$E$9,IF(RAW!$C$1:$R$1=Charts!$B$8,RAW!$C$2:$R$73)))) -> 18691 | F15: -144
C16: 1987 | D16: =SUM(IF(RAW!$A$2:$A$73=Charts!$C16,IF(RAW!$B$2:$B$73=Charts!$D$9,IF(RAW!$C$1:$R$1=Charts!$B$8,RAW!$C$2:$R$73)))) -> 18964 | E16: =SUM(IF(RAW!$A$2:$A$73=Charts!$C16,IF(RAW!$B$2:$B$73=Charts!$E$9,IF(RAW!$C$1:$R$1=Charts!$B$8,RAW!$C$2:$R$73)))) -> 18188 | F16: 776
C17: 1988 | D17: =SUM(IF(RAW!$A$2:$A$73=Charts!$C17,IF(RAW!$B$2:$B$73=Charts!$D$9,IF(RAW!$C$1:$R$1=Charts!$B$8,RAW!$C$2:$R$73)))) -> 19183 | E17: =SUM(IF(RAW!$A$2:$A$73=Charts!$C17,IF(RAW!$B$2:$B$73=Charts!$E$9,IF(RAW!$C$1:$R$1=Charts!$B$8,RAW!$C$2:$R$73)))) -> 18229 | F17: 954
C18: 1989 | D18: =SUM(IF(RAW!$A$2:$A$73=Charts!$C18,IF(RAW!$B$2:$B$73=Charts!$D$9,IF(RAW!$C$1:$R$1=Charts!$B$8,RAW!$C$2:$R$73)))) -> 19107 | E18: =SUM(IF(RAW!$A$2:$A$73=Charts!$C18,IF(RAW!$B$2:$B$73=Charts!$E$9,IF(RAW!$C$1:$R$1=Charts!$B$8,RAW!$C$2:$R$73)))) -> 18302 | F18: 805
C19: 1990 | D19: =SUM(IF(RAW!$A$2:$A$73=Charts!$C19,IF(RAW!$B$2:$B$73=Charts!$D$9,IF(RAW!$C$1:$R$1=Charts!$B$8,RAW!$C$2:$R$73)))) -> 19795 | E19: =SUM(IF(RAW!$A$2:$A$73=Charts!$C19,IF(RAW!$B$2:$B$73=Charts!$E$9,IF(RAW!$C$1:$R$1=Charts!$B$8,RAW!$C$2:$R$73)))) -> 17924 | F19: 1871
C20: 1991 | D20: =SUM(IF(RAW!$A$2:$A$73=Charts!$C20,IF(RAW!$B$2:$B$73=Charts!$D$9,IF(RAW!$C$1:$R$1=Charts!$B$8,RAW!$C$2:$R$73)))) -> 19647 | E20: =SUM(IF(RAW!$A$2:$A$73=Charts!$C20,IF(RAW!$B$2:$B$73=Charts!$E$9,IF(RAW!$C$1:$R$1=Charts!$B$8,RAW!$C$2:$R$73)))) -> 17909 | F20: 1738
C21: 1992 | D21: =SUM(IF(RAW!$A$2:$A$73=Charts!$C21,IF(RAW!$B$2:$B$73=Charts!$D$9,IF(RAW!$C$1:$R$1=Charts!$B$8,RAW!$C$2:$R$73)))) -> 18642 | E21: =SUM(IF(RAW!$A$2:$A$73=Charts!$C21,IF(RAW!$B$2:$B$73=Charts!$E$9,IF(RAW!$C$1:$R$1=Charts!$B$8,RAW!$C$2:$R$73)))) -> 17380 | F21: 1262
C22: 1993 | D22: =SUM(IF(RAW!$A$2:$A$73=Charts!$C22,IF(RAW!$B$2:$B$73=Charts!$D$9,IF(RAW!$C$1:$R$1=Charts!$B$8,RAW!$C$2:$R$73)))) -> 18413 | E22: =SUM(IF(RAW!$A$2:$A$73=Charts!$C22,IF(RAW!$B$2:$B$73=Charts!$E$9,IF(RAW!$C$1:$R$1=Charts!$B$8,RAW!$C$2:$R$73)))) -> 18174 | F22: 239
C23: 1994 | D23: =SUM(IF(RAW!$A$2:$A$73=Charts!$C23,IF(RAW!$B$2:$B$73=Charts!$D$9,IF(RAW!$C$1:$R$1=Charts!$B$8,RAW!$C$2:$R$73)))) -> 17749 | E23: =SUM(IF(RAW!$A$2:$A$73=Charts!$C23,IF(RAW!$B$2:$B$73=Charts!$E$9,IF(RAW!$C$1:$R$1=Charts!$B$8,RAW!$C$2:$R$73)))) -> 17153 | F23: 596
C24: 1995 | D24: =SUM(IF(RAW!$A$2:$A$73=Charts!$C24,IF(RAW!$B$2:$B$73=Charts!$D$9,IF(RAW!$C$1:$R$1=Charts!$B$8,RAW!$C$2:$R$73)))) -> 17260 | E24: =SUM(IF(RAW!$A$2:$A$73=Charts!$C24,IF(RAW!$B$2:$B$73=Charts!$E$9,IF(RAW!$C$1:$R$1=Charts!$B$8,RAW!$C$2:$R$73)))) -> 17382 | F24: -122
C25: 1996 | D25: =SUM(IF(RAW!$A$2:$A$73=Charts!$C25,IF(RAW!$B$2:$B$73=Charts!$D$9,IF(RAW!$C$1:$R$1=Charts!$B$8,RAW!$C$2:$R$73)))) -> 17424 | E25: =SUM(IF(RAW!$A$2:$A$73=Charts!$C25,IF(RAW!$B$2:$B$73=Charts!$E$9,IF(RAW!$C$1:$R$1=Charts!$B$8,RAW!$C$2:$R$73)))) -> 17074 | F25: 350
C26: 1997 | D26: =SUM(IF(RAW!$A$2:$A$73=Charts!$C26,IF(RAW!$B$2:$B$73=Charts!$D$9,IF(RAW!$C$1:$R$1=Charts!$B$8,RAW!$C$2:$R$73)))) -> 16894 | E26: =SUM(IF(RAW!$A$2:$A$73=Charts!$C26,IF(RAW!$B$2:$B$73=Charts!$E$9,IF(RAW!$C$1:$R$1=Charts!$B$8,RAW!$C$2:$R$73)))) -> 17391 | F26: -497
C27: 1998 | D27: =SUM(IF(RAW!$A$2:$A$73=Charts!$C27,IF(RAW!$B$2:$B$73=Charts!$D$9,IF(RAW!$C$1:$R$1=Charts!$B$8,RAW!$C$2:$R$73)))) -> 16685 | E27: =SUM(IF(RAW!$A$2:$A$73=Charts!$C27,IF(RAW!$B$2:$B$73=Charts!$E$9,IF(RAW!$C$1:$R$1=Charts!$B$8,RAW!$C$2:$R$73)))) -> 16795 | F27: -110
C28: 1999 | D28: =SUM(IF(RAW!$A$2:$A$73=Charts!$C28,IF(RAW!$B$2:$B$73=Charts!$D$9,IF(RAW!$C$1:$R$1=Charts!$B$8,RAW!$C$2:$R$73)))) -> 16226 | E28: =SUM(IF(RAW!$A$2:$A$73=Charts!$C28,IF(RAW!$B$2:$B$73=Charts!$E$9,IF(RAW!$C$1:$R$1=Charts!$B$8,RAW!$C$2:$R$73)))) -> 16878 | F28: =D28-E28 -> -652
C29: 2000 | D29: =SUM(IF(RAW!$A$2:$A$73=Charts!$C29,IF(RAW!$B$2:$B$73=Charts!$D$9,IF(RAW!$C$1:$R$1=Charts!$B$8,RAW!$C$2:$R$73)))) -> 15749 | E29: =SUM(IF(RAW!$A$2:$A$73=Charts!$C29,IF(RAW!$B$2:$B$73=Charts!$E$9,IF(RAW!$C$1:$R$1=Charts!$B$8,RAW!$C$2:$R$73)))) -> 16195 | F29: =D29-E29 -> -446
C30: 2001 | D30: =SUM(IF(RAW!$A$2:$A$73=Charts!$C30,IF(RAW!$B$2:$B$73=Charts!$D$9,IF(RAW!$C$1:$R$1=Charts!$B$8,RAW!$C$2:$R$73)))) -> 15644 | E30: =SUM(IF(RAW!$A$2:$A$73=Charts!$C30,IF(RAW!$B$2:$B$73=Charts!$E$9,IF(RAW!$C$1:$R$1=Charts!$B$8,RAW!$C$2:$R$73)))) -> 16126 | F30: -482
C31: 2002 | D31: =SUM(IF(RAW!$A$2:$A$73=Charts!$C31,IF(RAW!$B$2:$B$73=Charts!$D$9,IF(RAW!$C$1:$R$1=Charts!$B$8,RAW!$C$2:$R$73)))) -> 15229 | E31: =SUM(IF(RAW!$A$2:$A$73=Charts!$C31,IF(RAW!$B$2:$B$73=Charts!$E$9,IF(RAW!$C$1:$R$1=Charts!$B$8,RAW!$C$2:$R$73)))) -> 16229 | F31: -1000
C32: 2003 | D32: =SUM(IF(RAW!$A$2:$A$73=Charts!$C32,IF(RAW!$B$2:$B$73=Charts!$D$9,IF(RAW!$C$1:$R$1=Charts!$B$8,RAW!$C$2:$R$73)))) -> 16155 | E32: =SUM(IF(RAW!$A$2:$A$73=Charts!$C32,IF(RAW!$B$2:$B$73=Charts!$E$9,IF(RAW!$C$1:$R$1=Charts!$B$8,RAW!$C$2:$R$73)))) -> 16347 | F32: -192
C33: 2004 | D33: =SUM(IF(RAW!$A$2:$A$73=Charts!$C33,IF(RAW!$B$2:$B$73=Charts!$D$9,IF(RAW!$C$1:$R$1=Charts!$B$8,RAW!$C$2:$R$73)))) -> 16952 | E33: =SUM(IF(RAW!$A$2:$A$73=Charts!$C33,IF(RAW!$B$2:$B$73=Charts!$E$9,IF(RAW!$C$1:$R$1=Charts!$B$8,RAW!$C$2:$R$73)))) -> 15497 | F33: 1455
C34: 2005 | D34: =SUM(IF(RAW!$A$2:$A$73=Charts!$C34,IF(RAW!$B$2:$B$73=Charts!$D$9,IF(RAW!$C$1:$R$1=Charts!$B$8,RAW!$C$2:$R$73)))) -> 17017 | E34: =SUM(IF(RAW!$A$2:$A$73=Charts!$C34,IF(RAW!$B$2:$B$73=Charts!$E$9,IF(RAW!$C$1:$R$1=Charts!$B$8,RAW!$C$2:$R$73)))) -> 15672 | F34: 1345
C35: 2006 | D35: =SUM(IF(RAW!$A$2:$A$73=Charts!$C35,IF(RAW!$B$2:$B$73=Charts!$D$9,IF(RAW!$C$1:$R$1=Charts!$B$8,RAW!$C$2:$R$73)))) -> 17219 | E35: =SUM(IF(RAW!$A$2:$A$73=Charts!$C35,IF(RAW!$B$2:$B$73=Charts!$E$9,IF(RAW!$C$1:$R$1=Charts!$B$8,RAW!$C$2:$R$73)))) -> 15104 | F35: 2115
C36: 2007 | D36: =SUM(IF(RAW!$A$2:$A$73=Charts!$C36,IF(RAW!$B$2:$B$73=Charts!$D$9,IF(RAW!$C$1:$R$1=Charts!$B$8,RAW!$C$2:$R$73)))) -> 17535 | E36: =SUM(IF(RAW!$A$2:$A$73=Charts!$C36,IF(RAW!$B$2:$B$73=Charts!$E$9,IF(RAW!$C$1:$R$1=Charts!$B$8,RAW!$C$2:$R$73)))) -> 15367 | F36: 2168
C37: 2008 | D37: =SUM(IF(RAW!$A$2:$A$73=Charts!$C37,IF(RAW!$B$2:$B$73=Charts!$D$9,IF(RAW!$C$1:$R$1=Charts!$B$8,RAW!$C$2:$R$73)))) -> 18085 | E37: =SUM(IF(RAW!$A$2:$A$73=Charts!$C37,IF(RAW!$B$2:$B$73=Charts!$E$9,IF(RAW!$C$1:$R$1=Charts!$B$8,RAW!$C$2:$R$73)))) -> 15483 | F37: 2602
C38: 2009 | D38: =SUM(IF(RAW!$A$2:$A$73=Charts!$C38,IF(RAW!$B$2:$B$73=Charts!$D$9,IF(RAW!$C$1:$R$1=Charts!$B$8,RAW!$C$2:$R$73)))) -> 17868 | E38: =SUM(IF(RAW!$A$2:$A$73=Charts!$C38,IF(RAW!$B$2:$B$73=Charts!$E$9,IF(RAW!$C$1:$R$1=Charts!$B$8,RAW!$C$2:$R$73)))) -> 15001 | F38: 2867
C39: 2010 | D39: =SUM(IF(RAW!$A$2:$A$73=Charts!$C39,IF(RAW!$B$2:$B$73=Charts!$D$9,IF(RAW!$C$1:$R$1=Charts!$B$8,RAW!$C$2:$R$73)))) -> 17870 | E39: =SUM(IF(RAW!$A$2:$A$73=Charts!$C39,IF(RAW!$B$2:$B$73=Charts!$E$9,IF(RAW!$C$1:$R$1=Charts!$B$8,RAW!$C$2:$R$73)))) -> 14623 | F39: 3247
C40: 2011 | D40: =SUM(IF(RAW!$A$2:$A$73=Charts!$C40,IF(RAW!$B$2:$B$73=Charts!$D$9,IF(RAW!$C$1:$R$1=Charts!$B$8,RAW!$C$2:$R$73)))) -> 17873 | E40: =SUM(IF(RAW!$A$2:$A$73=Charts!$C40,IF(RAW!$B$2:$B$73=Charts!$E$9,IF(RAW!$C$1:$R$1=Charts!$B$8,RAW!$C$2:$R$73)))) -> 14683 | F40: 3190
C41: 2012 | D41: =SUM(IF(RAW!$A$2:$A$73=Charts!$C41,IF(RAW!$B$2:$B$73=Charts!$D$9,IF(RAW!$C$1:$R$1=Charts!$B$8,RAW!$C$2:$R$73)))) -> 17751 | E41: =SUM(IF(RAW!$A$2:$A$73=Charts!$C41,IF(RAW!$B$2:$B$73=Charts!$E$9,IF(RAW!$C$1:$R$1=Charts!$B$8,RAW!$C$2:$R$73)))) -> 14950 | F41: 2801
C42: 2013 | D42: =SUM(IF(RAW!$A$2:$A$73=Charts!$C42,IF(RAW!$B$2:$B$73=Charts!$D$9,IF(RAW!$C$1:$R$1=Charts!$B$8,RAW!$C$2:$R$73)))) -> 17288 | E42: =SUM(IF(RAW!$A$2:$A$73=Charts!$C42,IF(RAW!$B$2:$B$73=Charts!$E$9,IF(RAW!$C$1:$R$1=Charts!$B$8,RAW!$C$2:$R$73)))) -> 15157 | F42: 2131
C43: 2014 | D43: =SUM(IF(RAW!$A$2:$A$73=Charts!$C43,IF(RAW!$B$2:$B$73=Charts!$D$9,IF(RAW!$C$1:$R$1=Charts!$B$8,RAW!$C$2:$R$73)))) -> 17241 | E43: =SUM(IF(RAW!$A$2:$A$73=Charts!$C43,IF(RAW!$B$2:$B$73=Charts!$E$9,IF(RAW!$C$1:$R$1=Charts!$B$8,RAW!$C$2:$R$73)))) -> 15020 | F43: 2221
C44: 2015 | D44: =SUM(IF(RAW!$A$2:$A$73=Charts!$C44,IF(RAW!$B$2:$B$73=Charts!$D$9,IF(RAW!$C$1:$R$1=Charts!$B$8,RAW!$C$2:$R$73)))) -> 16982 | E44: =SUM(IF(RAW!$A$2:$A$73=Charts!$C44,IF(RAW!$B$2:$B$73=Charts!$E$9,IF(RAW!$C$1:$R$1=Charts!$B$8,RAW!$C$2:$R$73)))) -> 15510 | F44: 1472
C45: 2016 | D45: =SUM(IF(RAW!$A$2:$A$73=Charts!$C45,IF(RAW!$B$2:$B$73=Charts!$D$9,IF(RAW!$C$1:$R$1=Charts!$B$8,RAW!$C$2:$R$73)))) -> 17039 | E45: =SUM(IF(RAW!$A$2:$A$73=Charts!$C45,IF(RAW!$B$2:$B$73=Charts!$E$9,IF(RAW!$C$1:$R$1=Charts!$B$8,RAW!$C$2:$R$73)))) -> 15544 | F45: =D45-E45 -> 1495
A46: Source : ONS annual births and deaths registrations, last published July 2017
A47: Deaths registered in England and Wales 2016
A48: Births registered in England and Wales 2016

Sheet Rates
A1: Births and deaths rates 2012 - 2016
A5: Area of usual residence | C5: Total number of deaths | H5: Standardised mortality ratios (SMR) | M5: Direction
C6: 2016 | D6: 2015 | E6: 2014 | F6: 2013 | G6: 2012 | H6: 2016 | I6: 2015 | J6: 2014 | K6: 2013 | L6: 2012 | N6: England
A7: E92000001 | B7: ENGLAND | C7: 490791 | D7: 495309 | E7: 468875 | F7: 473552 | G7: 466779 | H7: 99 | I7: 99 | J7: 99 | K7: 99 | L7: 99 | M7: =IF(H7>L7,"p",IF(H7<L7,"q","n")) -> n | N7: 99
A8: E12000002 | B8: NORTH WEST | C8: 71315 | D8: 71299 | E8: 68318 | F8: 69045 | G8: 68262 | H8: 111 | I8: 110 | J8: 111 | K8: 110 | L8: 110 | M8: =IF(H8>L8,"p",IF(H8<L8,"q","n")) -> p | N8: 99
A9: E06000008 | B9: Blackburn with Darwen | C9: 1349 | D9: 1265 | E9: 1234 | F9: 1215 | G9: 1225 | H9: 133 | I9: 120 | J9: 119 | K9: 124 | L9: 121 | M9: p | N9: 99
A10: E06000009 | B10: Blackpool | C10: 1862 | D10: 1986 | E10: 1782 | F10: 1816 | G10: 1822 | H10: 141 | I10: 128 | J10: 128 | K10: 129 | L10: 139 | M10: p | N10: 99
A11: E10000017 | B11: Lancashire-12 | C11: 12333 | D11: 12259 | E11: 12004 | F11: 12126 | G11: 11903 | H11: 106 | I11: 104 | J11: 108 | K11: 108 | L11: 107 | M11: q | N11: 99
A12: E07000117 | B12: Burnley | C12: 865 | D12: 943 | E12: 911 | F12: 914 | G12: 1000 | H12: 113 | I12: 121 | J12: 123 | K12: 121 | L12: 133 | M12: q | N12: 99
A13: E07000118 | B13: Chorley | C13: 1087 | D13: 1024 | E13: 1044 | F13: 986 | G13: 980 | H13: 108 | I13: 102 | J13: 110 | K13: 104 | L13: 105 | M13: p | N13: 99
A14: E07000119 | B14: Fylde | C14: 1055 | D14: 1056 | E14: 1019 | F14: 1044 | G14: 1015 | H14: 102 | I14: 101 | J14: 103 | K14: 104 | L14: 103 | M14: q | N14: 99
A15: E07000120 | B15: Hyndburn | C15: 845 | D15: 799 | E15: 812 | F15: 843 | G15: 787 | H15: 122 | I15: 115 | J15: 123 | K15: 125 | L15: 117 | M15: p | N15: 99
A16: E07000121 | B16: Lancaster | C16: 1530 | D16: 1497 | E16: 1481 | F16: 1519 | G16: 1458 | H16: 111 | I16: 107 | J16: 111 | K16: 111 | L16: 108 | M16: p | N16: 99
A17: E07000122 | B17: Pendle | C17: 835 | D17: 858 | E17: 873 | F17: 846 | G17: 819 | H17: 105 | I17: 107 | J17: 114 | K17: 108 | L17: 106 | M17: q | N17: 99
A18: E07000123 | B18: Preston | C18: 1177 | D18: 1239 | E18: 1205 | F18: 1212 | G18: 1222 | H18: 111 | I18: 115 | J18: 117 | K18: 115 | L18: 116 | M18: q | N18: 99
A19: E07000124 | B19: Ribble Valley | C19: 611 | D19: 550 | E19: 608 | F19: 552 | G19: 550 | H19: 93 | I19: 84 | J19: 99 | K19: 89 | L19: 92 | M19: p | N19: 99
A20: E07000125 | B20: Rossendale | C20: 621 | D20: 670 | E20: 650 | F20: 646 | G20: 611 | H20: 105 | I20: 112 | J20: 115 | K20: 113 | L20: 108 | M20: q | N20: 99
A21: E07000126 | B21: South Ribble | C21: 1021 | D21: 1006 | E21: 939 | F21: 989 | G21: 965 | H21: 94 | I21: 93 | J21: 92 | K21: 97 | L21: 96 | M21: q | N21: 99
A22: E07000127 | B22: West Lancashire | C22: 1210 | D22: 1165 | E22: 1075 | F22: 1164 | G22: 1036 | H22: 106 | I22: 102 | J22: 101 | K22: 109 | L22: 99 | M22: p | N22: 99
A23: E07000128 | B23: Wyre | C23: 1476 | D23: 1452 | E23: 1387 | F23: 1411 | G23: 1460 | H23: 102 | I23: 100 | J23: 101 | K23: 102 | L23: 107 | M23: q | N23: 99
B25: Significantly above England
B26: Significantly below England
A27: The "Direction" column simply indicates whether or not the latest figures, represent an increase or decrease upon the 2012 figures.
A29: 1 SMRs are based on the latest mid-year population estimates at the time of publication. For more information on these rates please see the ONS guide to mortality statistics.
A31: Area of usual residence | C31: Total number of births | H31: General fertility rate (GFR) | N31: Total fertility rate (TFR) | X31: << Select area
C32: 2016 | D32: 2015 | E32: 2014 | F32: 2013 | G32: 2012 | H32: 2016 | I32: 2015 | J32: 2014 | K32: 2013 | L32: 2012 | M32: Direction | N32: 2016 | O32: 2015 | P32: 2014 | Q32: 2013 | R32: 2012 | S32: Direction | T32: Wyre | U32: =SUM(IF(TFR=$T$32,IF($N$32:$R$32=U33,$N$33:$R$49))) -> 1.83 | V32: =SUM(IF(TFR=$T$32,IF($N$32:$R$32=V33,$N$33:$R$49))) -> 1.79 | W32: =SUM(IF(TFR=$T$32,IF($N$32:$R$32=W33,$N$33:$R$49))) -> 1.88 | X32: =SUM(IF(TFR=$T$32,IF($N$32:$R$32=X33,$N$33:$R$49))) -> 1.81 | Y32: =SUM(IF(TFR=$T$32,IF($N$32:$R$32=Y33,$N$33:$R$49))) -> 1.79
A33: E92000001 | B33: ENGLAND | C33: 663157 | D33: 664399 | E33: 661496 | F33: 664517 | G33: 694241 | H33: 62.5 | I33: 62.5 | J33: 62.2 | K33: 62.4 | L33: 64.9 | M33: =IF(H33>L33,"p",IF(H33<L33,"q","n")) -> q | N33: 1.81 | O33: 1.82 | P33: 1.83 | Q33: 1.85 | R33: 1.94 | S33: =IF(N33>R33,"p",IF(N33<R33,"q","n")) -> q | U33: 2012 | V33: 2013 | W33: 2014 | X33: 2015 | Y33: 2016
A34: E12000002 | B34: NORTH WEST | C34: 86069 | D34: 85838 | E34: 85606 | F34: 86372 | G34: 89211 | H34: 63.4 | I34: 62.9 | J34: 62.5 | K34: 62.6 | L34: 64.1 | M34: =IF(H34>L34,"p",IF(H34<L34,"q","n")) -> q | N34: 1.85 | O34: 1.85 | P34: 1.86 | Q34: 1.88 | R34: 1.94 | S34: =IF(N34>R34,"p",IF(N34<R34,"q","n")) -> q | T34: Replacement fertility | U34: 2.1 | V34: 2.1 | W34: 2.1 | X34: 2.1 | Y34: 2.1
A35: E06000008 | B35: Blackburn with Darwen | C35: 2156 | D35: 2115 | E35: 2212 | F35: 2254 | G35: 2300 | H35: 75.7 | I35: 73.2 | J35: 75.8 | K35: 75.6 | L35: 75.90759076 | M35: q | N35: 2.25 | O35: 2.18 | P35: 2.25 | Q35: 2.25 | R35: 2.26 | S35: q | T35: England | U35: =R33 -> 1.94 | V35: =Q33 -> 1.85 | W35: =P33 -> 1.83 | X35: =O33 -> 1.82 | Y35: =N33 -> 1.81
A36: E06000009 | B36: Blackpool | C36: 1700 | D36: 1665 | E36: 1819 | F36: 1717 | G36: 1770 | H36: 70.6 | I36: 67.8 | J36: 72.5 | K36: 66.9 | L36: 68.24227937 | M36: p | N36: 2.09 | O36: 2.03 | P36: 2.17 | Q36: 2.03 | R36: 2.09 | S36: n | T36: =T32 -> Wyre | U36: 1.83 | V36: 1.79 | W36: 1.88 | X36: 1.81 | Y36: 1.79
A37: E10000017 | B37: Lancashire-12 | C37: 13183 | D37: 13202 | E37: 13210 | F37: 13317 | G37: 13681 | H37: 61.7 | I37: 61.2 | J37: 60.9 | K37: 60.7 | L37: 61.83391035 | M37: q | N37: 1.85 | O37: 1.85 | P37: 1.86 | Q37: 1.87 | R37: 1.93 | S37: q
A38: E07000117 | B38: Burnley | C38: 1207 | D38: 1197 | E38: 1122 | F38: 1210 | G38: 1227 | H38: 75.3 | I38: 73.6 | J38: 68 | K38: 72.7 | L38: 72.93586162 | M38: p | N38: 2.19 | O38: 2.13 | P38: 1.98 | Q38: 2.14 | R38: 2.17 | S38: p
A39: E07000118 | B39: Chorley | C39: 1226 | D39: 1269 | E39: 1231 | F39: 1182 | G39: 1229 | H39: 61.5 | I39: 63.2 | J39: 61.2 | K39: 58.8 | L39: 61.46536634 | M39: p | N39: 1.83 | O39: 1.91 | P39: 1.88 | Q39: 1.83 | R39: 1.93 | S39: q
A40: E07000119 | B40: Fylde | C40: 629 | D40: 633 | E40: 600 | F40: 645 | G40: 682 | H40: 57.3 | I40: 57.4 | J40: 53.1 | K40: 56.3 | L40: 58.39541057 | M40: q | N40: 1.79 | O40: 1.82 | P40: 1.67 | Q40: 1.78 | R40: 1.88 | S40: q
A41: E07000120 | B41: Hyndburn | C41: 1057 | D41: 1077 | E41: 1085 | F41: 1135 | G41: 1121 | H41: 71.2 | I41: 71.6 | J41: 71 | K41: 74 | L41: 72.13642214 | M41: q | N41: 2.09 | O41: 2.11 | P41: 2.13 | Q41: 2.24 | R41: 2.2 | S41: q
A42: E07000121 | B42: Lancaster | C42: 1456 | D42: 1447 | E42: 1497 | F42: 1482 | G42: 1584 | H42: 51.1 | I42: 50.9 | J42: 52.5 | K42: 51.7 | L42: 54.46668042 | M42: q | N42: 1.62 | O42: 1.62 | P42: 1.7 | Q42: 1.68 | R42: 1.78 | S42: q
A43: E07000122 | B43: Pendle | C43: 1214 | D43: 1261 | E43: 1304 | F43: 1278 | G43: 1305 | H43: 73.2 | I43: 75.5 | J43: 77.6 | K43: 74.5 | L43: 75.43788658 | M43: q | N43: 2.12 | O43: 2.18 | P43: 2.26 | Q43: 2.18 | R43: 2.23 | S43: q
A44: E07000123 | B44: Preston | C44: 1893 | D44: 1879 | E44: 1869 | F44: 1918 | G44: 1857 | H44: 64 | I44: 63 | J44: 62.5 | K44: 63.2 | L44: 60.33530444 | M44: p | N44: 1.9 | O44: 1.88 | P44: 1.86 | Q44: 1.87 | R44: 1.81 | S44: p
A45: E07000124 | B45: Ribble Valley | C45: 482 | D45: 426 | E45: 457 | F45: 427 | G45: 475 | H45: 53.5 | I45: 46.9 | J45: 49.7 | K45: 45.8 | L45: 50.77498664 | M45: p | N45: 1.75 | O45: 1.57 | P45: 1.67 | Q45: 1.56 | R45: 1.75 | S45: n
A46: E07000125 | B46: Rossendale | C46: 818 | D46: 763 | E46: 837 | F46: 818 | G46: 835 | H46: 65.4 | I46: 60 | J46: 65.1 | K46: 62.9 | L46: 63.85256557 | M46: p | N46: 1.97 | O46: 1.85 | P46: 2 | Q46: 1.97 | R46: 2.03 | S46: q
A47: E07000126 | B47: South Ribble | C47: 1241 | D47: 1208 | E47: 1206 | F47: 1138 | G47: 1242 | H47: 64.8 | I47: 62.2 | J47: 61.7 | K47: 57.3 | L47: 61.3909347 | M47: p | N47: 1.95 | O47: 1.91 | P47: 1.89 | Q47: 1.78 | R47: 1.93 | S47: p
A48: E07000127 | B48: West Lancashire | C48: 1000 | D48: 1076 | E48: 1011 | F48: 1142 | G48: 1168 | H48: 49.5 | I48: 52.8 | J48: 49.8 | K48: 56 | L48: 57.59084858 | M48: q | N48: 1.65 | O48: 1.79 | P48: 1.68 | Q48: 1.9 | R48: 1.92 | S48: q
A49: E07000128 | B49: Wyre | C49: 960 | D49: 966 | E49: 991 | F49: 942 | G49: 956 | H49: 58.3 | I49: 58.1 | J49: 59.1 | K49: 55.5 | L49: 55.86069884 | M49: p | N49: 1.79 | O49: 1.81 | P49: 1.88 | Q49: 1.79 | R49: 1.83 | S49: q
B51: Significantly above England
B52: Significantly below England
A53: The "Direction" column simply indicates whether or not the latest figures, represent an increase or decrease upon the 2012 figures.
A55: Live births and stillbirths by area of usual residence of mother, numbers, General Fertility Rates and Total Fertility Rates
A56: 2 The General Fertility Rate (GFR) is the number of live births per 1,000 women aged 15 to 44, calculated using the latest mid-year population estimates at the time of publication
A57: 3 The Total Fertility Rate (TFR) is the average number of live children that a group of women would bear if they experienced the age-specific fertility rates of the calendar year in question throughout their childbearing lifespan.

Sheet RAW (hidden)
A1: Year | B1: BorD | C1: Lancashire-14 | D1: Lancashire-12 | E1: Blackburn with Darwen | F1: Blackpool | G1: Burnley | H1: Chorley | I1: Fylde | J1: Hyndburn | K1: Lancaster | L1: Pendle | M1: Preston | N1: Ribble Valley | O1: Rossendale | P1: South Ribble | Q1: West Lancashire | R1: Wyre
A2: 1981 | B2: live births | C2: 17597 | D2: 13839 | E2: 2317 | F2: 1441 | G2: 1300 | H2: 1220 | I2: 634 | J2: 1118 | K2: 1376 | L2: 1269 | M2: 1729 | N2: 520 | O2: 949 | P2: 1231 | Q2: 1469 | R2: 1024
A3: 1982 | B3: live births | C3: 17583 | D3: 13759 | E3: 2361 | F3: 1463 | G3: 1286 | H3: 1225 | I3: 654 | J3: 1109 | K3: 1443 | L3: 1232 | M3: 1691 | N3: 514 | O3: 918 | P3: 1292 | Q3: 1414 | R3: 981
A4: 1983 | B4: live births | C4: 17829 | D4: 14030 | E4: 2258 | F4: 1541 | G4: 1362 | H4: 1209 | I4: 676 | J4: 1115 | K4: 1447 | L4: 1280 | M4: 1773 | N4: 504 | O4: 881 | P4: 1347 | Q4: 1494 | R4: 942
A5: 1984 | B5: live births | C5: 18021 | D5: 14191 | E5: 2318 | F5: 1512 | G5: 1336 | H5: 1166 | I5: 648 | J5: 1126 | K5: 1546 | L5: 1255 | M5: 1807 | N5: 532 | O5: 890 | P5: 1386 | Q5: 1460 | R5: 1039
A6: 1985 | B6: live births | C6: 18308 | D6: 14352 | E6: 2341 | F6: 1615 | G6: 1374 | H6: 1203 | I6: 696 | J6: 1150 | K6: 1534 | L6: 1294 | M6: 1836 | N6: 517 | O6: 913 | P6: 1335 | Q6: 1490 | R6: 1010
A7: 1986 | B7: live births | C7: 18547 | D7: 14425 | E7: 2303 | F7: 1819 | G7: 1442 | H7: 1205 | I7: 729 | J7: 1095 | K7: 1565 | L7: 1292 | M7: 1805 | N7: 541 | O7: 905 | P7: 1326 | Q7: 1467 | R7: 1053
A8: 1987 | B8: live births | C8: 18964 | D8: 14688 | E8: 2374 | F8: 1902 | G8: 1342 | H8: 1283 | I8: 725 | J8: 1151 | K8: 1567 | L8: 1287 | M8: 1908 | N8: 558 | O8: 903 | P8: 1406 | Q8: 1469 | R8: 1089
A9: 1988 | B9: live births | C9: 19183 | D9: 14899 | E9: 2337 | F9: 1947 | G9: 1410 | H9: 1285 | I9: 768 | J9: 1170 | K9: 1600 | L9: 1285 | M9: 1926 | N9: 609 | O9: 968 | P9: 1375 | Q9: 1393 | R9: 1110
A10: 1989 | B10: live births | C10: 19107 | D10: 15037 | E10: 2266 | F10: 1804 | G10: 1450 | H10: 1317 | I10: 775 | J10: 1165 | K10: 1558 | L10: 1244 | M10: 2009 | N10: 593 | O10: 968 | P10: 1362 | Q10: 1426 | R10: 1170
A11: 1990 | B11: live births | C11: 19795 | D11: 15442 | E11: 2398 | F11: 1955 | G11: 1449 | H11: 1384 | I11: 738 | J11: 1186 | K11: 1548 | L11: 1310 | M11: 2139 | N11: 578 | O11: 973 | P11: 1498 | Q11: 1496 | R11: 1143
A12: 1991 | B12: live births | C12: 19647 | D12: 15324 | E12: 2372 | F12: 1951 | G12: 1478 | H12: 1323 | I12: 729 | J12: 1244 | K12: 1625 | L12: 1301 | M12: 2029 | N12: 536 | O12: 991 | P12: 1385 | Q12: 1494 | R12: 1189
A13: 1992 | B13: live births | C13: 18642 | D13: 14510 | E13: 2329 | F13: 1803 | G13: 1413 | H13: 1217 | I13: 722 | J13: 1206 | K13: 1541 | L13: 1252 | M13: 1936 | N13: 516 | O13: 961 | P13: 1290 | Q13: 1349 | R13: 1107
A14: 1993 | B14: live births | C14: 18413 | D14: 14213 | E14: 2404 | F14: 1796 | G14: 1334 | H14: 1222 | I14: 720 | J14: 1208 | K14: 1515 | L14: 1197 | M14: 1897 | N14: 558 | O14: 946 | P14: 1249 | Q14: 1338 | R14: 1029
A15: 1994 | B15: live births | C15: 17749 | D15: 13637 | E15: 2286 | F15: 1826 | G15: 1239 | H15: 1149 | I15: 679 | J15: 1185 | K15: 1429 | L15: 1202 | M15: 1862 | N15: 502 | O15: 892 | P15: 1184 | Q15: 1312 | R15: 1002
A16: 1995 | B16: live births | C16: 17260 | D16: 13215 | E16: 2362 | F16: 1683 | G16: 1195 | H16: 1183 | I16: 704 | J16: 1233 | K16: 1397 | L16: 1114 | M16: 1684 | N16: 463 | O16: 874 | P16: 1142 | Q16: 1245 | R16: 981
A17: 1996 | B17: live births | C17: 17424 | D17: 13391 | E17: 2263 | F17: 1770 | G17: 1227 | H17: 1138 | I17: 663 | J17: 1174 | K17: 1481 | L17: 1137 | M17: 1835 | N17: 527 | O17: 791 | P17: 1129 | Q17: 1228 | R17: 1061
A18: 1997 | B18: live births | C18: 16894 | D18: 12980 | E18: 2192 | F18: 1722 | G18: 1132 | H18: 1068 | I18: 693 | J18: 1045 | K18: 1437 | L18: 1095 | M18: 1843 | N18: 530 | O18: 774 | P18: 1120 | Q18: 1222 | R18: 1021
A19: 1998 | B19: live births | C19: 16685 | D19: 12856 | E19: 2204 | F19: 1625 | G19: 1168 | H19: 1108 | I19: 665 | J19: 1068 | K19: 1376 | L19: 1130 | M19: 1679 | N19: 530 | O19: 788 | P19: 1142 | Q19: 1199 | R19: 1003
A20: 1999 | B20: live births | C20: 16226 | D20: 12577 | E20: 2121 | F20: 1528 | G20: 1132 | H20: 1074 | I20: 669 | J20: 1046 | K20: 1366 | L20: 1077 | M20: 1688 | N20: 514 | O20: 793 | P20: 1078 | Q20: 1218 | R20: 922
A21: 2000 | B21: live births | C21: 15749 | D21: 12132 | E21: 2094 | F21: 1523 | G21: 1009 | H21: 1041 | I21: 592 | J21: 1052 | K21: 1338 | L21: 1131 | M21: 1593 | N21: 546 | O21: 757 | P21: 1039 | Q21: 1073 | R21: 961
A22: 2001 | B22: live births | C22: 15644 | D22: 12164 | E22: 2083 | F22: 1397 | G22: 1056 | H22: 1012 | I22: 636 | J22: 1019 | K22: 1274 | L22: 1083 | M22: 1659 | N22: 503 | O22: 764 | P22: 1118 | Q22: 1122 | R22: 918
A23: 2002 | B23: live births | C23: 15229 | D23: 11716 | E23: 2110 | F23: 1403 | G23: 1040 | H23: 1035 | I23: 573 | J23: 1017 | K23: 1216 | L23: 1065 | M23: 1562 | N23: 484 | O23: 715 | P23: 1053 | Q23: 1067 | R23: 889
A24: 2003 | B24: live births | C24: 16155 | D24: 12463 | E24: 2143 | F24: 1549 | G24: 1092 | H24: 1104 | I24: 567 | J24: 1132 | K24: 1321 | L24: 1114 | M24: 1691 | N24: 510 | O24: 706 | P24: 1100 | Q24: 1142 | R24: 984
A25: 2004 | B25: live births | C25: 16952 | D25: 13082 | E25: 2184 | F25: 1686 | G25: 1153 | H25: 1241 | I25: 600 | J25: 1104 | K25: 1328 | L25: 1163 | M25: 1758 | N25: 522 | O25: 817 | P25: 1197 | Q25: 1179 | R25: 1020
A26: 2005 | B26: live births | C26: 17017 | D26: 13084 | E26: 2284 | F26: 1649 | G26: 1163 | H26: 1177 | I26: 655 | J26: 1123 | K26: 1401 | L26: 1244 | M26: 1801 | N26: 475 | O26: 803 | P26: 1114 | Q26: 1193 | R26: 935
A27: 2006 | B27: live births | C27: 17219 | D27: 13249 | E27: 2315 | F27: 1655 | G27: 1173 | H27: 1205 | I27: 578 | J27: 1119 | K27: 1379 | L27: 1224 | M27: 1895 | N27: 488 | O27: 839 | P27: 1186 | Q27: 1136 | R27: 1027
A28: 2007 | B28: live births | C28: 17535 | D28: 13503 | E28: 2338 | F28: 1694 | G28: 1273 | H28: 1209 | I28: 630 | J28: 1088 | K28: 1455 | L28: 1266 | M28: 1849 | N28: 531 | O28: 796 | P28: 1178 | Q28: 1257 | R28: 971
A29: 2008 | B29: live births | C29: 18085 | D29: 13963 | E29: 2377 | F29: 1745 | G29: 1315 | H29: 1238 | I29: 642 | J29: 1159 | K29: 1487 | L29: 1322 | M29: 1943 | N29: 505 | O29: 876 | P29: 1255 | Q29: 1244 | R29: 977
A30: 2009 | B30: live births | C30: 17868 | D30: 13829 | E30: 2312 | F30: 1727 | G30: 1213 | H30: 1202 | I30: 621 | J30: 1231 | K30: 1476 | L30: 1345 | M30: 1976 | N30: 517 | O30: 865 | P30: 1236 | Q30: 1169 | R30: 978
A31: 2010 | B31: live births | C31: 17870 | D31: 13797 | E31: 2296 | F31: 1777 | G31: 1245 | H31: 1193 | I31: 679 | J31: 1140 | K31: 1518 | L31: 1358 | M31: 1992 | N31: 478 | O31: 849 | P31: 1208 | Q31: 1198 | R31: 939
A32: 2011 | B32: live births | C32: 17873 | D32: 13794 | E32: 2344 | F32: 1735 | G32: 1172 | H32: 1283 | I32: 693 | J32: 1164 | K32: 1574 | L32: 1303 | M32: 1918 | N32: 438 | O32: 859 | P32: 1285 | Q32: 1116 | R32: 989
A33: 2012 | B33: live births | C33: 17751 | D33: 13681 | E33: 2300 | F33: 1770 | G33: 1227 | H33: 1229 | I33: 682 | J33: 1121 | K33: 1584 | L33: 1305 | M33: 1857 | N33: 475 | O33: 835 | P33: 1242 | Q33: 1168 | R33: 956
A34: 2013 | B34: live births | C34: 17288 | D34: 13317 | E34: 2254 | F34: 1717 | G34: 1210 | H34: 1182 | I34: 645 | J34: 1135 | K34: 1482 | L34: 1278 | M34: 1918 | N34: 427 | O34: 818 | P34: 1138 | Q34: 1142 | R34: 942
A35: 2014 | B35: live births | C35: 17241 | D35: 13210 | E35: 2212 | F35: 1819 | G35: 1122 | H35: 1231 | I35: 600 | J35: 1085 | K35: 1497 | L35: 1304 | M35: 1869 | N35: 457 | O35: 837 | P35: 1206 | Q35: 1011 | R35: 991
A36: 2015 | B36: live births | C36: 16982 | D36: 13202 | E36: 2115 | F36: 1665 | G36: 1197 | H36: 1269 | I36: 633 | J36: 1077 | K36: 1447 | L36: 1261 | M36: 1879 | N36: 426 | O36: 763 | P36: 1208 | Q36: 1076 | R36: 966
A37: 2016 | B37: live births | C37: 17039 | D37: 13183 | E37: 2156 | F37: 1700 | G37: 1207 | H37: 1226 | I37: 629 | J37: 1057 | K37: 1456 | L37: 1214 | M37: 1893 | N37: 482 | O37: 818 | P37: 1241 | Q37: 1000 | R37: 960
A38: 1981 | B38: deaths | C38: 18959 | D38: 14458 | E38: 1818 | F38: 2683 | G38: 1380 | H38: 959 | I38: 1106 | J38: 1097 | K38: 2026 | L38: 1238 | M38: 1657 | N38: 649 | O38: 802 | P38: 949 | Q38: 1088 | R38: 1507
A39: 1982 | B39: deaths | C39: 19275 | D39: 14654 | E39: 1925 | F39: 2696 | G39: 1347 | H39: 953 | I39: 1200 | J39: 1136 | K39: 2019 | L39: 1170 | M39: 1650 | N39: 644 | O39: 840 | P39: 988 | Q39: 1132 | R39: 1575
A40: 1983 | B40: deaths | C40: 19086 | D40: 14577 | E40: 1966 | F40: 2543 | G40: 1321 | H40: 980 | I40: 1257 | J40: 1043 | K40: 1923 | L40: 1205 | M40: 1696 | N40: 705 | O40: 804 | P40: 940 | Q40: 1138 | R40: 1565
A41: 1984 | B41: deaths | C41: 18508 | D41: 14248 | E41: 1827 | F41: 2433 | G41: 1300 | H41: 1039 | I41: 1270 | J41: 1043 | K41: 1928 | L41: 1166 | M41: 1622 | N41: 657 | O41: 822 | P41: 916 | Q41: 1066 | R41: 1419
A42: 1985 | B42: deaths | C42: 19357 | D42: 14826 | E42: 1910 | F42: 2621 | G42: 1344 | H42: 1002 | I42: 1275 | J42: 1084 | K42: 2046 | L42: 1151 | M42: 1761 | N42: 630 | O42: 780 | P42: 1015 | Q42: 1145 | R42: 1593
A43: 1986 | B43: deaths | C43: 18691 | D43: 14409 | E43: 1829 | F43: 2453 | G43: 1187 | H43: 990 | I43: 1261 | J43: 1131 | K43: 1895 | L43: 1177 | M43: 1638 | N43: 702 | O43: 796 | P43: 997 | Q43: 1112 | R43: 1523
A44: 1987 | B44: deaths | C44: 18188 | D44: 13961 | E44: 1834 | F44: 2393 | G44: 1215 | H44: 1028 | I44: 1245 | J44: 994 | K44: 1817 | L44: 1077 | M44: 1665 | N44: 653 | O44: 743 | P44: 967 | Q44: 1071 | R44: 1486
A45: 1988 | B45: deaths | C45: 18229 | D45: 14165 | E45: 1704 | F45: 2360 | G45: 1227 | H45: 1008 | I45: 1206 | J45: 1029 | K45: 1786 | L45: 1099 | M45: 1598 | N45: 647 | O45: 815 | P45: 1026 | Q45: 1141 | R45: 1583
A46: 1989 | B46: deaths | C46: 18302 | D46: 14147 | E46: 1770 | F46: 2385 | G46: 1203 | H46: 1075 | I46: 1248 | J46: 996 | K46: 1815 | L46: 1009 | M46: 1578 | N46: 697 | O46: 800 | P46: 998 | Q46: 1154 | R46: 1574
A47: 1990 | B47: deaths | C47: 17924 | D47: 13917 | E47: 1639 | F47: 2368 | G47: 1204 | H47: 953 | I47: 1239 | J47: 935 | K47: 1919 | L47: 970 | M47: 1593 | N47: 653 | O47: 828 | P47: 958 | Q47: 1061 | R47: 1604
A48: 1991 | B48: deaths | C48: 17909 | D48: 13836 | E48: 1677 | F48: 2396 | G48: 1198 | H48: 1023 | I48: 1170 | J48: 968 | K48: 1819 | L48: 945 | M48: 1657 | N48: 634 | O48: 808 | P48: 996 | Q48: 1071 | R48: 1547
A49: 1992 | B49: deaths | C49: 17380 | D49: 13566 | E49: 1590 | F49: 2224 | G49: 1193 | H49: 969 | I49: 1174 | J49: 974 | K49: 1768 | L49: 986 | M49: 1590 | N49: 608 | O49: 784 | P49: 982 | Q49: 1080 | R49: 1458
A50: 1993 | B50: deaths | C50: 18174 | D50: 14094 | E50: 1649 | F50: 2431 | G50: 1188 | H50: 1102 | I50: 1105 | J50: 975 | K50: 1795 | L50: 1014 | M50: 1604 | N50: 669 | O50: 837 | P50: 1051 | Q50: 1188 | R50: 1566
A51: 1994 | B51: deaths | C51: 17153 | D51: 13373 | E51: 1506 | F51: 2274 | G51: 1129 | H51: 1031 | I51: 1115 | J51: 901 | K51: 1727 | L51: 945 | M51: 1508 | N51: 623 | O51: 768 | P51: 1026 | Q51: 1118 | R51: 1482
A52: 1995 | B52: deaths | C52: 17382 | D52: 13521 | E52: 1509 | F52: 2352 | G52: 1087 | H52: 944 | I52: 1150 | J52: 972 | K52: 1737 | L52: 956 | M52: 1596 | N52: 600 | O52: 761 | P52: 990 | Q52: 1176 | R52: 1552
A53: 1996 | B53: deaths | C53: 17074 | D53: 13265 | E53: 1566 | F53: 2243 | G53: 1093 | H53: 1001 | I53: 1083 | J53: 956 | K53: 1739 | L53: 975 | M53: 1465 | N53: 614 | O53: 728 | P53: 1010 | Q53: 1164 | R53: 1437
A54: 1997 | B54: deaths | C54: 17391 | D54: 13486 | E54: 1654 | F54: 2251 | G54: 1151 | H54: 1052 | I54: 1142 | J54: 1026 | K54: 1645 | L54: 963 | M54: 1364 | N54: 606 | O54: 781 | P54: 1063 | Q54: 1111 | R54: 1582
A55: 1998 | B55: deaths | C55: 16795 | D55: 13072 | E55: 1551 | F55: 2172 | G55: 1096 | H55: 985 | I55: 1080 | J55: 946 | K55: 1678 | L55: 966 | M55: 1431 | N55: 582 | O55: 693 | P55: 980 | Q55: 1138 | R55: 1497
A56: 1999 | B56: deaths | C56: 16878 | D56: 13235 | E56: 1527 | F56: 2116 | G56: 1089 | H56: 1013 | I56: 1101 | J56: 951 | K56: 1667 | L56: 918 | M56: 1435 | N56: 601 | O56: 760 | P56: 1029 | Q56: 1215 | R56: 1456
A57: 2000 | B57: deaths | C57: 16195 | D57: 12664 | E57: 1437 | F57: 2094 | G57: 981 | H57: 1069 | I57: 1033 | J57: 914 | K57: 1614 | L57: 896 | M57: 1316 | N57: 561 | O57: 683 | P57: 1026 | Q57: 1179 | R57: 1392
A58: 2001 | B58: deaths | C58: 16126 | D58: 12645 | E58: 1342 | F58: 2139 | G58: 971 | H58: 993 | I58: 1035 | J58: 910 | K58: 1566 | L58: 928 | M58: 1382 | N58: 594 | O58: 695 | P58: 1031 | Q58: 1192 | R58: 1348
A59: 2002 | B59: deaths | C59: 16229 | D59: 12721 | E59: 1439 | F59: 2069 | G59: 1033 | H59: 1027 | I59: 1045 | J59: 913 | K59: 1593 | L59: 913 | M59: 1332 | N59: 571 | O59: 667 | P59: 992 | Q59: 1201 | R59: 1434
A60: 2003 | B60: deaths | C60: 16347 | D60: 12823 | E60: 1411 | F60: 2113 | G60: 1016 | H60: 1030 | I60: 1041 | J60: 891 | K60: 1573 | L60: 959 | M60: 1366 | N60: 569 | O60: 715 | P60: 1058 | Q60: 1177 | R60: 1428
A61: 2004 | B61: deaths | C61: 15497 | D61: 12230 | E61: 1306 | F61: 1961 | G61: 1018 | H61: 1000 | I61: 1018 | J61: 806 | K61: 1504 | L61: 871 | M61: 1239 | N61: 570 | O61: 670 | P61: 937 | Q61: 1147 | R61: 1450
A62: 2005 | B62: deaths | C62: 15672 | D62: 12364 | E62: 1320 | F62: 1988 | G62: 912 | H62: 992 | I62: 1027 | J62: 836 | K62: 1479 | L62: 930 | M62: 1349 | N62: 554 | O62: 686 | P62: 927 | Q62: 1136 | R62: 1536
A63: 2006 | B63: deaths | C63: 15104 | D63: 11898 | E63: 1285 | F63: 1921 | G63: 988 | H63: 900 | I63: 985 | J63: 864 | K63: 1477 | L63: 863 | M63: 1240 | N63: 549 | O63: 626 | P63: 1000 | Q63: 1092 | R63: 1314
A64: 2007 | B64: deaths | C64: 15367 | D64: 12123 | E64: 1368 | F64: 1876 | G64: 964 | H64: 915 | I64: 983 | J64: 826 | K64: 1530 | L64: 837 | M64: 1252 | N64: 568 | O64: 663 | P64: 1052 | Q64: 1118 | R64: 1415
A65: 2008 | B65: deaths | C65: 15483 | D65: 12306 | E65: 1277 | F65: 1900 | G65: 944 | H65: 1049 | I65: 991 | J65: 910 | K65: 1560 | L65: 818 | M65: 1347 | N65: 489 | O65: 687 | P65: 982 | Q65: 1141 | R65: 1388
A66: 2009 | B66: deaths | C66: 15001 | D66: 11886 | E66: 1312 | F66: 1803 | G66: 945 | H66: 937 | I66: 995 | J66: 838 | K66: 1412 | L66: 853 | M66: 1196 | N66: 618 | O66: 708 | P66: 946 | Q66: 1083 | R66: 1355
A67: 2010 | B67: deaths | C67: 14623 | D67: 11508 | E67: 1235 | F67: 1880 | G67: 841 | H67: 921 | I67: 907 | J67: 813 | K67: 1450 | L67: 814 | M67: 1199 | N67: 584 | O67: 630 | P67: 907 | Q67: 1116 | R67: 1326
A68: 2011 | B68: deaths | C68: 14683 | D68: 11676 | E68: 1189 | F68: 1818 | G68: 926 | H68: 967 | I68: 965 | J68: 791 | K68: 1433 | L68: 812 | M68: 1126 | N68: 543 | O68: 667 | P68: 970 | Q68: 1068 | R68: 1408
A69: 2012 | B69: deaths | C69: 14950 | D69: 11903 | E69: 1225 | F69: 1822 | G69: 1000 | H69: 980 | I69: 1015 | J69: 787 | K69: 1458 | L69: 819 | M69: 1222 | N69: 550 | O69: 611 | P69: 965 | Q69: 1036 | R69: 1460
A70: 2013 | B70: deaths | C70: 15157 | D70: 12126 | E70: 1215 | F70: 1816 | G70: 914 | H70: 986 | I70: 1044 | J70: 843 | K70: 1519 | L70: 846 | M70: 1212 | N70: 552 | O70: 646 | P70: 989 | Q70: 1164 | R70: 1411
A71: 2014 | B71: deaths | C71: 15020 | D71: 12004 | E71: 1234 | F71: 1782 | G71: 911 | H71: 1044 | I71: 1019 | J71: 812 | K71: 1481 | L71: 873 | M71: 1205 | N71: 608 | O71: 650 | P71: 939 | Q71: 1075 | R71: 1387
A72: 2015 | B72: deaths | C72: 15510 | D72: 12259 | E72: 1265 | F72: 1986 | G72: 943 | H72: 1024 | I72: 1056 | J72: 799 | K72: 1497 | L72: 858 | M72: 1239 | N72: 550 | O72: 670 | P72: 1006 | Q72: 1165 | R72: 1452
A73: 2016 | B73: deaths | C73: 15544 | D73: 12333 | E73: 1349 | F73: 1862 | G73: 865 | H73: 1087 | I73: 1055 | J73: 845 | K73: 1530 | L73: 835 | M73: 1177 | N73: 611 | O73: 621 | P73: 1021 | Q73: 1210 | R73: 1476

Sheet Lookup (hidden)
B2: Lancashire-12
B3: Lancashire-14
B4: Blackburn with Darwen
B5: Blackpool
B6: Burnley
B7: Chorley
B8: Fylde
B9: Hyndburn
B10: Lancaster
B11: Pendle
B12: Preston
B13: Ribble Valley
B14: Rossendale
B15: South Ribble
B16: West Lancashire
B17: Wyre
